fUSD/lending_fUSD_20250828
["ID","MTS","AMOUNT","RATE_DAILY","PERIOD"]
[381877227,1756384260394,-150.0,0.00028648,30]
[381877229,1756384260403,-175.81207623,0.00028658,4]
[381877231,1756384260413,-159.80905372,0.00028658,4]
[381877233,1756384260422,-1734.21,0.000287,7]
[381877235,1756384260432,-5625.37475522,0.00028734,10]
[381877237,1756384260441,-12940.28927844,0.0002876,2]
[381877239,1756384260451,-950.56285169,0.0002876,2]
[381877241,1756384260460,-500.0,0.00028851,2]
[381877243,1756384260470,-1298.0,0.00028859,2]
[381877245,1756384260479,-566.0,0.00028859,2]
[381877247,1756384260488,-438.479,0.00028859,2]
[381877249,1756384260501,-1575.0,0.00028859,2]
[381877251,1756384260510,-1174.0,0.00028859,2]
[381877253,1756384260519,-895.0,0.00028859,2]
[381877255,1756384260528,-926.0,0.00028859,2]
[381877257,1756384260537,-4156.0,0.00028859,2]
[381877259,1756384260546,-3376.0,0.00028859,2]
[381877261,1756384260556,-735.64,0.00028894,2]
[381877263,1756384260565,-769.31,0.00028899,2]
[381877264,1756384260574,-799.88,0.00028899,2]
[381877266,1756384260583,-799.88,0.00028899,2]
[381877268,1756384260592,-799.88,0.00028899,2]
[381877270,1756384260601,-799.88,0.00028899,2]
[381877272,1756384260610,-205000.0,0.000289,7]
[381877274,1756384260619,-726.62,0.00028904,8]
[381877276,1756384260628,-175.81207623,0.00028991,4]
[381877278,1756384260638,-2517.68,0.00028998,4]
[381877280,1756384260647,-29341.31323614,0.00029,2]
[381877282,1756384260656,-236.55283543,0.00029,10]
[381877284,1756384260665,-160.0,0.00029,10]
[381877286,1756384260674,-165.7,0.000291,20]
[381877288,1756384260684,-357.6762453,0.00029109,2]
[381877290,1756384260693,-150.0,0.00029196,30]
[381877292,1756384260703,-1056.03586395,0.000292,2]
[381877294,1756384260711,-175.81207623,0.00029325,4]
[381877296,1756384260720,-159.80905372,0.00029325,4]
[381877298,1756384260729,-450.0,0.00029332,2]
[381877300,1756384260739,-150.0,0.00029437,7]
[381877302,1756384260750,-726.62,0.00029589,9]
[381877304,1756384260759,-175.81207623,0.00029658,4]
[381877306,1756384260769,-5625.37475522,0.00029693,12]
[381877308,1756384260778,-269.33304384,0.00029721,2]
[381877310,1756384260787,-150.0,0.00029744,30]
[381877312,1756384260797,-256.342,0.000298,2]
[381877314,1756384260806,-249.61,0.00029858,2]
[381877316,1756384260815,-217.23524532,0.00029896,15]
[381877318,1756384260824,-165.835624,0.00029899,7]
[381877320,1756384260833,-151.0,0.00029899,7]
[381877322,1756384260842,-23216.28473512,0.000299,2]
[381877324,1756384260852,-151.0,0.000299,7]
[381877326,1756384260861,-232.13267221,0.0002999,2]
[381877328,1756384260870,-151.0,0.0002999,7]
[381877330,1756384260879,-151.0,0.0002999,7]
[381877332,1756384260887,-151.0,0.0002999,7]
[381877334,1756384260897,-175.81207623,0.00029991,4]
[381877336,1756384260906,-159.80905372,0.00029991,4]
[381877338,1756384260915,-304.45,0.0003,2]
[381877340,1756384260924,-1294.92,0.0003,10]
[381877342,1756384260933,-1850.0,0.0003,5]
[381877344,1756384260942,-839.12052614,0.0003,30]
[381877346,1756384260951,-1899.53,0.0003,2]
[381877348,1756384260960,-1776.33515397,0.0003,2]
[381877350,1756384260969,-162.18478856,0.0003,2]
[381877352,1756384260979,-1070.09037551,0.0003,10]
[381877354,1756384260988,-979.58989437,0.0003,2]
[381877355,1756384261000,-400.0,0.0003,20]
[381877357,1756384261010,-600.14062568,0.0003,2]
[381877359,1756384261019,-3003.1460753,0.0003,2]
[381877361,1756384261028,-2500.0,0.0003,30]
[381877363,1756384261037,-3596.0,0.0003,60]
[381877365,1756384261047,-4000.0,0.0003,4]
[381877368,1756384261056,-204.04,0.000301,7]
[381877370,1756384261065,-2860.31,0.000301,7]
[381877372,1756384261075,-3137.65,0.000301,2]
[381877373,1756384261084,-150.0,0.00030124,2]
[381877375,1756384261094,-150.0,0.00030124,2]
[381877377,1756384261104,-150.0,0.00030124,2]
[381877379,1756384261208,-305.51510141,0.0003013,2]
[381877381,1756384261218,-197.24689594,0.0003013,2]
[381877383,1756384261227,-200.93122636,0.0003013,2]
[381877385,1756384261236,-200.0,0.00030136,2]
[381877387,1756384261249,-237.54922213,0.00030137,120]
[381877389,1756384261259,-191.35692867,0.00030137,120]
[381877391,1756384261268,-481.39951999,0.00030159,2]
[381877393,1756384261278,-1100.0,0.00030176,7]
[381877395,1756384261288,-1100.0,0.00030178,7]
[381877397,1756384261298,-1100.0,0.00030202,7]
[381877399,1756384261307,-500.0,0.00030206,7]
[381877401,1756384261316,-800.0,0.00030223,7]
[381877403,1756384261325,-1100.0,0.00030235,7]
[381877405,1756384261334,-800.0,0.0003024,7]
[381877407,1756384261344,-1100.0,0.00030259,7]
[381877409,1756384261354,-800.0,0.00030263,7]
[381877412,1756384261365,-500.0,0.00030264,7]
[381877413,1756384261375,-500.0,0.00030271,7]
[381877415,1756384261385,-500.0,0.00030272,7]
[381877417,1756384261394,-726.62,0.00030273,10]
[381877419,1756384261404,-1100.0,0.00030286,7]
[381877421,1756384261413,-150.0,0.00030292,30]
[381877423,1756384261422,-800.0,0.00030313,7]
[381877425,1756384261431,-175.81207623,0.00030324,4]
[381877427,1756384261441,-1200.0,0.00030342,7]
[381877429,1756384261450,-500.0,0.0003036,7]
[381877431,1756384261459,-1100.0,0.00030381,7]
[381877433,1756384261469,-1000.0,0.00030386,7]
[381877435,1756384261478,-500.0,0.00030393,7]
[381877437,1756384261487,-500.0,0.00030404,7]
[381877439,1756384261500,-1200.0,0.00030409,7]
[381877441,1756384261510,-800.0,0.00030413,7]
[381877443,1756384261519,-1100.0,0.0003043,7]
[381877445,1756384261528,-500.0,0.00030434,7]
[381877447,1756384261537,-200.0,0.00030437,2]
[381877449,1756384261547,-311.60891705,0.00030444,7]
[381877451,1756384261556,-500.0,0.00030458,7]
[381877453,1756384261566,-1300.0,0.00030458,7]
[381877455,1756384261575,-1599.62,0.00030466,2]
[381877457,1756384261585,-1597.64,0.00030466,2]
[381877459,1756384261594,-469.3,0.00030466,2]
[381877461,1756384261604,-500.0,0.00030472,7]
[381877463,1756384261613,-168.0,0.00030478,2]
[381877465,1756384261623,-370.91026638,0.00030478,2]
[381877467,1756384261633,-500.0,0.0003048,7]
[381877469,1756384261642,-242.15909246,0.00030482,2]
[381877471,1756384261652,-1100.0,0.00030496,7]
[381877473,1756384261661,-1000.0,0.00030505,7]
[381877474,1756384261671,-500.0,0.00030512,7]
[381877476,1756384261680,-1100.0,0.00030518,7]
[381877478,1756384261689,-150.0,0.00030543,2]
[381877480,1756384261699,-150.0,0.00030543,2]
[381877482,1756384261709,-539.98,0.00030543,2]
[381877484,1756384261719,-1186.34,0.00030543,2]
[381877486,1756384261728,-150.0,0.00030543,2]
[381877488,1756384261737,-150.0,0.00030543,2]
[381877490,1756384261750,-160.69,0.00030543,2]
[381877492,1756384261759,-173.87,0.00030543,2]
[381877494,1756384261768,-150.0,0.00030543,2]
[381877496,1756384261778,-150.0,0.00030543,2]
[381877498,1756384261787,-150.0,0.00030543,2]
[381877500,1756384261797,-539.98,0.00030543,2]
[381877502,1756384261806,-539.98,0.00030543,2]
[381877504,1756384261815,-166.18,0.00030543,2]
[381877506,1756384261824,-150.0,0.00030543,2]
[381877508,1756384261833,-150.0,0.00030543,2]
[381877510,1756384261843,-150.0,0.00030543,2]
[381877512,1756384261852,-408.79,0.00030543,2]
[381877514,1756384261861,-173.87,0.00030543,2]
[381877516,1756384261871,-150.0,0.00030543,2]
[381877518,1756384261880,-539.98,0.00030543,2]
[381877520,1756384261889,-151.64,0.00030543,2]
[381877522,1756384261899,-500.0,0.0003056,7]
[381877524,1756384261908,-1100.0,0.00030576,7]
[381877526,1756384261918,-500.0,0.00030593,7]
[381877528,1756384261927,-1200.0,0.00030615,7]
[381877530,1756384261937,-800.0,0.00030617,7]
[381877532,1756384261946,-982.06333775,0.00030627,7]
[381877534,1756384261955,-5625.37475522,0.00030652,14]
[381877535,1756384261965,-1000.0,0.00030652,7]
[381877538,1756384261975,-500.0,0.00030652,7]
[381877540,1756384261984,-175.81207623,0.00030658,4]
[381877541,1756384261997,-159.80905372,0.00030658,4]
[381877544,1756384262008,-166.27146386,0.00030662,7]
[381877546,1756384262018,-500.7,0.00030674,7]
[381877547,1756384262028,-800.0,0.00030678,7]
[381877549,1756384262037,-800.0,0.00030679,7]
[381877551,1756384262046,-1100.0,0.00030682,7]
[381877554,1756384262056,-500.0,0.00030683,7]
[381877556,1756384262066,-500.0,0.0003069,7]
[381877558,1756384262076,-800.0,0.00030692,7]
[381877560,1756384262086,-500.0,0.00030701,7]
[381877562,1756384262096,-1100.0,0.00030702,7]
[381877564,1756384262105,-500.0,0.00030705,7]
[381877566,1756384262115,-1200.0,0.00030712,7]
[381877568,1756384262124,-500.0,0.00030715,7]
[381877570,1756384262134,-500.83733438,0.00030716,7]
[381877571,1756384262142,-200.0,0.00030742,2]
[381877574,1756384262152,-1000.0,0.00030746,7]
[381877576,1756384262161,-500.0,0.00030752,7]
[381877577,1756384262170,-1100.0,0.0003076,7]
[381877579,1756384262179,-500.0,0.00030779,7]
[381877581,1756384262189,-844.93374113,0.0003079,7]
[381877584,1756384262202,-214.93134349,0.0003079,3]
[381877585,1756384262211,-212.25325354,0.000308,3]
[381877587,1756384262220,-250.0,0.000308,30]
[381877589,1756384262228,-1200.0,0.00030802,7]
[381877591,1756384262239,-347.539861,0.00030808,7]
[381877593,1756384262252,-347.539861,0.00030808,7]
[381877595,1756384262262,-151.0,0.00030808,7]
[381877597,1756384262271,-347.539861,0.00030808,7]
[381877599,1756384262282,-151.0,0.00030808,7]
[381877601,1756384262292,-151.0,0.00030808,7]
[381877603,1756384262303,-347.539861,0.00030808,7]
[381877605,1756384262314,-248.751159,0.00030808,7]
[381877607,1756384262323,-1100.0,0.00030813,7]
[381877609,1756384262332,-600.0,0.00030822,80]
[381877611,1756384262342,-800.0,0.00030834,7]
[381877613,1756384262351,-1100.0,0.0003084,7]
[381877615,1756384262361,-150.0,0.0003084,30]
[381877617,1756384262371,-1100.0,0.00030851,7]
[381877619,1756384262381,-1300.0,0.00030873,7]
[381877621,1756384262391,-1300.0,0.0003089,7]
[381877623,1756384262400,-300.0,0.000309,2]
[381877625,1756384262410,-300.0,0.000309,2]
[381877627,1756384262420,-300.0,0.000309,2]
[381877629,1756384262429,-300.0,0.000309,2]
[381877631,1756384262438,-333.55537504,0.000309,2]
[381877633,1756384262448,-1100.0,0.0003091,7]
[381877635,1756384262458,-1000.0,0.00030922,7]
[381877637,1756384262467,-1100.0,0.00030929,7]
[381877640,1756384262478,-500.0,0.00030946,7]
[381877642,1756384262488,-1300.0,0.00030947,7]
[381877644,1756384262502,-1200.0,0.00030951,7]
[381877646,1756384262512,-810.0,0.00030952,7]
[381877648,1756384262523,-500.0,0.00030953,7]
[381877650,1756384262532,-726.62,0.00030958,11]
[381877652,1756384262542,-1100.0,0.00030965,7]
[381877654,1756384262552,-500.0,0.00030973,7]
[381877656,1756384262562,-345.5225,0.0003098,2]
[381877658,1756384262572,-151.0,0.0003098,7]
[381877660,1756384262583,-151.0,0.0003098,7]
[381877662,1756384262593,-151.0,0.0003098,7]
[381877664,1756384262603,-151.0,0.0003098,7]
[381877666,1756384262613,-1300.0,0.00030986,7]
[381877668,1756384262624,-150.0,0.00030986,7]
[381877670,1756384262634,-150.0,0.00030986,7]
[381877672,1756384262645,-150.0,0.00030986,7]
[381877674,1756384262657,-1100.0,0.00030987,7]
[381877676,1756384262667,-300.0,0.00030989,10]
[381877678,1756384262677,-421732.39725866,0.0003099,15]
[381877680,1756384262688,-151.0,0.0003099,7]
[381877682,1756384262699,-151.0,0.0003099,7]
[381877684,1756384262709,-151.0,0.0003099,7]
[381877686,1756384262722,-290.262543,0.0003099,7]
[381877688,1756384262733,-347.539861,0.0003099,7]
[381877690,1756384262748,-347.539861,0.0003099,7]
[381877693,1756384262759,-151.0,0.0003099,7]
[381877695,1756384262770,-347.539861,0.0003099,7]
[381877696,1756384262779,-151.0,0.0003099,7]
[381877699,1756384262790,-151.0,0.0003099,7]
[381877701,1756384262800,-347.539852,0.0003099,7]
[381877703,1756384262811,-299.980903,0.0003099,7]
[381877704,1756384262820,-151.0,0.0003099,7]
[381877707,1756384262830,-151.0,0.0003099,7]
[381877709,1756384262840,-151.0,0.0003099,7]
[381877711,1756384262849,-151.0,0.0003099,7]
[381877713,1756384262859,-151.0,0.0003099,7]
[381877715,1756384262868,-151.0,0.0003099,7]
[381877717,1756384262878,-153.534656,0.0003099,7]
[381877719,1756384262888,-175.81207623,0.00030991,4]
[381877721,1756384262898,-300.0,0.00030999,10]
[381877723,1756384262908,-14263.87169019,0.00031,5]
[381877725,1756384262918,-769.0,0.00031,30]
[381877727,1756384262927,-145020.63577293,0.00031,30]
[381877729,1756384262937,-844.93374113,0.00031,30]
[381877731,1756384262946,-333.62196639,0.00031,5]
[381877733,1756384262955,-2860.31,0.00031,7]
[381877735,1756384262965,-204.04,0.00031,30]
[381877737,1756384262974,-293.53478631,0.00031,20]
[381877739,1756384262984,-166.66666667,0.00031,15]
[381877741,1756384262997,-160.0,0.00031,30]
[381877743,1756384263007,-1200.0,0.00031014,7]
[381877745,1756384263016,-1300.0,0.00031019,7]
[381877747,1756384263026,-500.0,0.00031026,7]
[381877749,1756384263036,-300.0,0.00031027,10]
[381877751,1756384263046,-1412.93,0.00031028,15]
[381877752,1756384263057,-800.0,0.00031034,7]
[381877753,1756384263067,-1000.0,0.00031039,7]
[381877754,1756384263077,-200.0,0.00031049,2]
[381877755,1756384263088,-1300.0,0.0003105,7]
[381877756,1756384263098,-1100.0,0.00031058,7]
[381877757,1756384263108,-1300.0,0.00031099,7]
[381877758,1756384263119,-1000.0,0.000311,7]
[381877759,1756384263128,-36371.98,0.000311,7]
[381877760,1756384263137,-500.0,0.00031101,7]
[381877761,1756384263148,-1100.0,0.00031105,7]
[381877762,1756384263158,-1300.0,0.0003111,7]
[381877763,1756384263168,-1200.0,0.00031111,7]
[381877764,1756384263178,-1412.93,0.00031128,15]
[381877765,1756384263189,-500.0,0.00031146,7]
[381877766,1756384263199,-800.0,0.0003116,7]
[381877768,1756384263214,-500.0,0.00031164,7]
[381877770,1756384263225,-500.0,0.00031166,7]
[381877772,1756384263237,-2517.68,0.0003119,6]
[381877774,1756384263251,-1100.0,0.00031192,7]
[381877776,1756384263261,-1100.0,0.00031207,7]
[381877778,1756384263272,-500.0,0.0003122,7]
[381877780,1756384263283,-800.0,0.00031225,7]
[381877782,1756384263295,-1563.4037829,0.00031226,2]
[381877784,1756384263305,-1412.93,0.00031228,15]
[381877786,1756384263316,-1300.0,0.00031228,7]
[381877788,1756384263326,-500.0,0.00031228,7]
[381877790,1756384263337,-500.0,0.00031238,7]
[381877792,1756384263347,-151.0,0.00031248,7]
[381877794,1756384263358,-151.0,0.00031248,7]
[381877796,1756384263369,-151.0,0.00031248,7]
[381877798,1756384263380,-151.0,0.00031248,7]
[381877800,1756384263391,-151.0,0.00031248,7]
[381877802,1756384263401,-168.0,0.00031248,2]
[381877804,1756384263412,-800.0,0.00031262,7]
[381877806,1756384263423,-800.0,0.0003127,7]
[381877808,1756384263433,-163.51,0.00031296,2]
[381877810,1756384263444,-204.04,0.000313,30]
[381877813,1756384263454,-2860.31,0.000313,7]
[381877815,1756384263464,-3137.65,0.000313,2]
[381877817,1756384263475,-1000.0,0.00031303,7]
[381877819,1756384263486,-1300.0,0.00031308,7]
[381877821,1756384263498,-175.81207623,0.00031324,4]
[381877823,1756384263510,-159.80905372,0.00031324,4]
[381877825,1756384263520,-1412.93,0.00031328,15]
[381877827,1756384263531,-1300.0,0.00031346,7]
[381877829,1756384263549,-500.0,0.00031355,7]
[381877831,1756384263561,-1100.0,0.00031357,7]
[381877833,1756384263572,-200.0,0.0003136,2]
[381877834,1756384263582,-151.0,0.00031365,7]
[381877836,1756384263594,-173.87,0.00031365,2]
[381877839,1756384263605,-1186.34,0.00031365,2]
[381877841,1756384263616,-150.0,0.00031365,2]
[381877843,1756384263627,-539.98,0.00031365,2]
[381877845,1756384263638,-408.79,0.00031365,2]
[381877847,1756384263650,-1186.34,0.00031365,2]
[381877849,1756384263661,-408.79,0.00031365,2]
[381877850,1756384263671,-173.87,0.00031365,2]
[381877852,1756384263681,-150.0,0.00031365,2]
[381877855,1756384263693,-539.98,0.00031365,2]
[381877856,1756384263703,-1186.34,0.00031365,2]
[381877859,1756384263714,-539.98,0.00031365,2]
[381877861,1756384263724,-166.18,0.00031365,2]
[381877863,1756384263735,-408.79,0.00031365,2]
[381877865,1756384263747,-173.87,0.00031365,2]
[381877867,1756384263758,-150.0,0.00031365,2]
[381877869,1756384263770,-173.87,0.00031365,2]
[381877871,1756384263780,-539.98,0.00031365,2]
[381877873,1756384263790,-1186.34,0.00031365,2]
[381877875,1756384263802,-150.0,0.00031365,2]
[381877877,1756384263813,-166.18,0.00031365,2]
[381877879,1756384263825,-408.79,0.00031365,2]
[381877881,1756384263835,-408.79,0.00031365,2]
[381877883,1756384263846,-173.87,0.00031365,2]
[381877885,1756384263856,-1186.34,0.00031365,2]
[381877887,1756384263866,-166.18,0.00031365,2]
[381877889,1756384263876,-539.98,0.00031365,2]
[381877891,1756384263887,-173.87,0.00031365,2]
[381877893,1756384263898,-656.03,0.00031365,2]
[381877895,1756384263908,-166.18,0.00031365,2]
[381877897,1756384263919,-408.79,0.00031365,2]
[381877899,1756384263929,-539.98,0.00031365,2]
[381877901,1756384263939,-173.87,0.00031365,2]
[381877903,1756384263950,-166.18,0.00031365,2]
[381877905,1756384263960,-408.79,0.00031365,2]
[381877907,1756384263971,-166.18,0.00031365,2]
[381877909,1756384263980,-408.79,0.00031365,2]
[381877911,1756384263991,-173.87,0.00031365,2]
[381877913,1756384264004,-166.18,0.00031365,2]
[381877915,1756384264014,-346.33,0.00031365,2]
[381877917,1756384264024,-539.98,0.00031365,2]
[381877919,1756384264034,-408.79,0.00031365,2]
[381877921,1756384264044,-539.98,0.00031365,2]
[381877923,1756384264055,-408.79,0.00031365,2]
[381877925,1756384264065,-166.18,0.00031365,2]
[381877927,1756384264076,-166.18,0.00031365,2]
[381877929,1756384264086,-408.79,0.00031365,2]
[381877931,1756384264097,-539.98,0.00031365,2]
[381877933,1756384264107,-539.98,0.00031365,2]
[381877935,1756384264116,-165.46,0.00031365,2]
[381877937,1756384264126,-408.79,0.00031365,2]
[381877939,1756384264136,-539.98,0.00031365,2]
[381877941,1756384264146,-394.25,0.00031365,2]
[381877943,1756384264155,-1300.0,0.00031374,7]
[381877946,1756384264166,-500.0,0.00031376,7]
[381877948,1756384264177,-500.0,0.00031382,7]
[381877950,1756384264187,-150.0,0.00031388,30]
[381877952,1756384264200,-1000.0,0.00031389,7]
[381877954,1756384264212,-343.1199384,0.00031399,2]
[381877956,1756384264222,-500.0,0.00031404,7]
[381877958,1756384264232,-1412.93,0.00031428,15]
[381877960,1756384264244,-500.0,0.00031436,7]
[381877962,1756384264258,-800.0,0.00031442,7]
[381877964,1756384264268,-469.47,0.00031452,2]
[381877966,1756384264280,-469.47,0.00031452,2]
[381877968,1756384264291,-799.88,0.00031452,2]
[381877970,1756384264301,-469.47,0.00031452,2]
[381877972,1756384264311,-469.47,0.00031452,2]
[381877974,1756384264321,-469.47,0.00031452,2]
[381877976,1756384264331,-968.3,0.00031452,2]
[381877978,1756384264341,-1300.0,0.00031461,7]
[381877980,1756384264352,-500.0,0.00031473,7]
[381877982,1756384264361,-500.0,0.00031478,7]
[381877984,1756384264372,-1200.0,0.0003149,7]
[381877986,1756384264382,-1100.0,0.00031493,7]
[381877988,1756384264391,-151.0,0.00031499,7]
[381877991,1756384264402,-151.0,0.00031499,7]
[381877992,1756384264412,-151.0,0.00031499,7]
[381877995,1756384264421,-193.29477052,0.000315,2]
[381877997,1756384264431,-150.0,0.000315,2]
[381877999,1756384264441,-500.0,0.00031511,7]
[381878001,1756384264451,-500.0,0.00031514,7]
[381878003,1756384264461,-500.0,0.00031523,7]
[381878005,1756384264471,-1412.93,0.00031528,15]
[381878007,1756384264481,-1100.0,0.00031539,7]
[381878009,1756384264492,-1300.0,0.00031555,7]
[381878011,1756384264504,-500.0,0.00031556,7]
[381878013,1756384264514,-500.0,0.00031567,7]
[381878015,1756384264523,-1100.0,0.00031577,7]
[381878017,1756384264532,-500.0,0.00031585,7]
[381878019,1756384264542,-500.0,0.00031586,7]
[381878021,1756384264552,-500.0,0.00031595,7]
[381878023,1756384264562,-168.0,0.00031596,2]
[381878025,1756384264572,-217.23524532,0.0003161,15]
[381878027,1756384264581,-5625.37475522,0.0003161,16]
[381878030,1756384264592,-800.0,0.00031617,7]
[381878032,1756384264602,-500.0,0.00031618,7]
[381878034,1756384264611,-1412.93,0.00031628,15]
[381878036,1756384264620,-726.62,0.00031643,12]
[381878038,1756384264630,-1300.0,0.00031646,7]
[381878040,1756384264640,-1000.0,0.00031651,7]
[381878042,1756384264648,-175.81207623,0.00031657,30]
[381878044,1756384264659,-1000.0,0.00031682,7]
[381878046,1756384264669,-481.39951999,0.00031691,2]
[381878047,1756384264678,-1000.0,0.00031701,7]
[381878049,1756384264688,-1000.0,0.00031703,7]
[381878050,1756384264698,-1412.93,0.00031728,15]
[381878052,1756384264708,-500.0,0.00031745,7]
[381878054,1756384264718,-1000.0,0.00031751,7]
[381878056,1756384264728,-500.0,0.00031761,7]
[381878057,1756384264738,-1100.0,0.00031761,7]
[381878059,1756384264750,-1100.0,0.00031766,7]
[381878060,1756384264760,-168.0,0.00031769,2]
[381878062,1756384264770,-800.0,0.00031784,7]
[381878075,1756384264946,-3137.65,0.000318,2]
[381878077,1756384264956,-1000.0,0.00031812,7]
[381878079,1756384264967,-1300.0,0.0003182,7]
[381878081,1756384264976,-1412.93,0.00031828,15]
[381878082,1756384264986,-1100.0,0.00031828,7]
[381878084,1756384264996,-500.0,0.00031831,7]
[381878086,1756384265010,-800.0,0.00031832,7]
[381878087,1756384265021,-1000.0,0.00031836,7]
[381878089,1756384265031,-1300.0,0.00031846,7]
[381878091,1756384265040,-1300.0,0.00031847,7]
[381878093,1756384265050,-384.63394623,0.00031847,2]
[381878094,1756384265059,-1000.0,0.0003185,7]
[381878096,1756384265069,-500.0,0.00031852,7]
[381878098,1756384265079,-1000.0,0.00031852,7]
[381878100,1756384265090,-473.642,0.00031859,2]
[381878102,1756384265099,-395.644,0.00031859,2]
[381878103,1756384265109,-1174.0,0.00031859,2]
[381878105,1756384265118,-895.0,0.00031859,2]
[381878107,1756384265128,-455.127,0.00031859,2]
[381878109,1756384265138,-4156.0,0.00031859,2]
[381878110,1756384265147,-1217.572,0.00031859,2]
[381878112,1756384265157,-150.0,0.0003187,120]
[381878114,1756384265166,-36371.98,0.000319,7]
[381878116,1756384265176,-1000.0,0.00031902,7]
[381878117,1756384265185,-1300.0,0.00031904,7]
[381878119,1756384265195,-1300.0,0.00031908,7]
[381878121,1756384265205,-179.82141733,0.00031913,7]
[381878123,1756384265218,-1412.93,0.00031928,15]
[381878125,1756384265228,-1100.0,0.00031929,7]
[381878126,1756384265237,-150.0,0.00031936,30]
[381878128,1756384265251,-1300.0,0.00031937,7]
[381878130,1756384265261,-150.0,0.00031938,120]
[381878132,1756384265271,-1200.0,0.00031939,7]
[381878134,1756384265281,-800.0,0.0003194,7]
[381878136,1756384265292,-1100.0,0.00031952,7]
[381878137,1756384265302,-1100.0,0.00031972,7]
[381878139,1756384265312,-192.39,0.00031973,2]
[381878141,1756384265323,-302.54,0.00031973,2]
[381878143,1756384265333,-1186.34,0.00031973,2]
[381878144,1756384265343,-173.87,0.00031973,2]
[381878146,1756384265353,-173.87,0.00031973,2]
[381878148,1756384265363,-408.79,0.00031973,2]
[381878150,1756384265372,-173.87,0.00031973,2]
[381878152,1756384265382,-1079.35,0.00031973,2]
[381878153,1756384265391,-173.87,0.00031973,2]
[381878155,1756384265400,-408.79,0.00031973,2]
[381878157,1756384265409,-408.79,0.00031973,2]
[381878159,1756384265420,-173.87,0.00031973,2]
[381878160,1756384265429,-173.87,0.00031973,2]
[381878162,1756384265439,-408.79,0.00031973,2]
[381878164,1756384265449,-173.87,0.00031973,2]
[381878166,1756384265459,-408.79,0.00031973,2]
[381878167,1756384265468,-173.87,0.00031973,2]
[381878169,1756384265479,-408.79,0.00031973,2]
[381878171,1756384265489,-173.87,0.00031973,2]
[381878173,1756384265506,-408.79,0.00031973,2]
[381878175,1756384265516,-331.08,0.00031973,2]
[381878177,1756384265526,-173.14,0.00031973,2]
[381878178,1756384265536,-166.18,0.00031973,2]
[381878180,1756384265546,-408.79,0.00031973,2]
[381878182,1756384265555,-166.18,0.00031973,2]
[381878184,1756384265566,-166.18,0.00031973,2]
[381878186,1756384265575,-408.79,0.00031973,2]
[381878187,1756384265584,-408.79,0.00031973,2]
[381878189,1756384265594,-343.24,0.00031973,2]
[381878191,1756384265603,-1200.0,0.00031981,7]
[381878193,1756384265613,-175.81207623,0.00031991,30]
[381878195,1756384265623,-159.80905372,0.00031991,30]
[381878196,1756384265632,-800.0,0.00031996,7]
[381878198,1756384265642,-172.0,0.00032,30]
[381878200,1756384265651,-769.0,0.00032,30]
[381878202,1756384265661,-844.93374113,0.00032,7]
[381878204,1756384265670,-10140.71126809,0.00032,5]